Cogmind - Beta 10.2 @@@ ROGUE MODE // 2021.05.30 @ 10:43:49 Player: ChromeKnight Result: Self-destructed Performance ------------- Evolutions (1) 500 Regions Visited (2) 400 Robots Destroyed (21) 105 Value Destroyed (494) 494 Prototype IDs (0) 0 Alien Tech Used (0) 0 Bonus (0) 0 TOTAL SCORE: 1499 Bonus ------- None Cogmind --------- Core Integrity 152/400 Matter 268/300 Energy 265/265 System Corruption 0% Temperature Cool (15) Movement Treading (200) Ox2 Location -9/Materials Parts ------- > --- POWER (1) -------- Improved Ion Engine > --- PROPULSION (2) --- Light Treads > --- UTILITY (4) ------ Heat Sink Large Storage Unit Large Storage Unit Improved Targeting Computer > --- WEAPON (2) ------- Heavy Assault Rifle > --- INVENTORY (16) --- Light Ion Engine Light Treads Medium Storage Unit Medium Storage Unit Large Storage Unit Large Storage Unit Light Assault Rifle Peak State ------------ > --- POWER ------------ Improved Ion Engine > --- PROPULSION ------- Light Treads Light Treads > --- UTILITY ---------- Heat Sink Large Storage Unit Large Storage Unit Improved Targeting Computer > --- WEAPON ----------- Small Laser Heavy Assault Rifle > --- INVENTORY -------- Light Ion Engine Light Treads Medium Storage Unit Medium Storage Unit Large Storage Unit Large Storage Unit Light Assault Rifle [Rating: 12] Favorites ----------- Power Light Ion Engine Engine Light Ion Engine Power Core Light Nuclear Core Propulsion Aluminum Leg Treads Light Treads Leg Aluminum Leg Utility Large Storage Unit Device Heat Sink Storage Large Storage Unit Processor Improved Targeting Computer Weapon Light Assault Rifle Energy Gun Small Laser Ballistic Gun Light Assault Rifle Build | -11 -10 -9 ------- Run | Scr Mat Mat Slots Evolved 2 | . . 2 Power . | . . . Propulsion . | . . . Utility 2 | . . 2 Weapon . | . . . Parts Attached 26 | 7 6 13 Power 5 | 1 2 2 Engine 4 | 1 1 2 Core 1 | . 1 . Reactor . | . . . Propulsion 4 | 2 . 2 Treads 2 | . . 2 Leg 2 | 2 . . Wheel . | . . . Hover . | . . . Flight . | . . . Utility 5 | 1 2 2 Device 1 | . . 1 Storage 3 | 1 2 . Processor 1 | . . 1 Hackware . | . . . Protection . | . . . Artifact . | . . . Weapon 12 | 3 2 7 Energy Gun 1 | . . 1 Energy Cannon . | . . . Ballistic Gun 11 | 3 2 6 Ballistic Cannon . | . . . Launcher . | . . . Special Weapon . | . . . Impact Weapon . | . . . Slashing Weapon . | . . . Piercing Weapon . | . . . Special Melee Weapon . | . . . Unidentified Prototypes . | . . . Parts Lost 11 | . 2 9 Power 2 | . 1 1 Propulsion 2 | . . 2 Utility . | . . . Weapon 7 | . 1 6 Highest Loss Streak 5 | . 2 5 Average Slot Usage (%) 88 | . 91 85 Engine 7 | . 5 10 Core 4 | . 7 . Treads 1 | . . 3 Leg 21 | . 28 13 Device 2 | . . 5 Storage 21 | . 20 22 Processor 4 | . . 10 Energy Gun 2 | . . 4 Ballistic Gun 21 | . 27 15 Naked Turns . | . . . Heaviest Build 44 | 10 39 44 Greatest Support 40 | 20 20 40 Greatest Overweight (x) 4 | 2 1 4 Average Overweight (x) . | . . 1 Largest Inventory Capacity 16 | 6 16 16 Average Capacity 12 | 5 10 16 Most Carried 9 | 1 5 9 Average Carried 4 | . 2 7 Final Capacity 16 | 6 16 16 Final Carried 7 | 1 5 7 Class Distribution -------------------- 84% | Mutant 15% | Scavenger-Mutant Dominant Class ---------------- Mutant | -10/Materials Mutant | -9/Materials Resources | -11 -10 -9 ----------- Run | Scr Mat Mat Matter Collected 582 | 248 155 179 Remotely . | . . . Salvage Created 760 | . 365 395 Parts 48 | . 23 25 Haulers Intercepted 1 | . 1 . Recyclers Shooed 3 | . 1 2 Parts Field Recycled . | . . . Retrieved Matter . | . . . Parts Self-Destructed . | . . . Prevented . | . . . Kills | -11 -10 -9 ------- Run | Scr Mat Mat Combat Hostiles Destroyed 16 | . 7 9 Guns 16 | . 7 9 Classes Destroyed 8 | . 5 3 Hauler 1 | . 1 . Recycler 2 | . 1 1 Operator 1 | . . 1 Watcher 1 | . 1 . Swarmer 7 | . 3 4 Grunt 5 | . 4 1 Duelist 1 | . . 1 Sentry 3 | . . 3 Best Kill Streak 3 | . 3 2 Combat Bots Only 3 | . 3 2 Max Kills in Single Turn 1 | . 1 1 Gunslinging . | . . . Exploded . | . . . Melee . | . . . Uniques/NPCs Destroyed . | . . . Combat | -11 -10 -9 -------- Run | Scr Mat Mat Damage Taken 1637 | . 358 1279 Core 320 | . 72 248 Absorbed by Shields . | . . . Core Remaining (%) 85 | 100 71 . Volleys Fired 96 | . 43 53 Largest 2 | . 2 2 Hottest 63 | . 40 63 Shots Fired 167 | . 83 84 Gun 167 | . 83 84 Cannon . | . . . Launcher . | . . . Special . | . . . Kinetic 150 | . 83 67 Thermal 17 | . . 17 Explosive . | . . . Electromagnetic . | . . . Robot Hit Streak 15 | . 11 15 Robot Miss Streak 7 | . 7 2 Penetration Max . | . . . Secondary Targets 1 | . . 1 Max Gunslinging Chain 1 | . . 1 Shots Hit Robots 126 | . 59 67 Core Hits 48 | . 24 24 Critical Hits . | . . . Critical Kills . | . . . Critical Parts Destroyed . | . . . Melee Attacks . | . . . Impact . | . . . Slashing . | . . . Piercing . | . . . Sneak Attacks . | . . . Combat Hostiles . | . . . Follow-up Attacks . | . . . Damage Inflicted 1212 | . 470 742 Guns 1212 | . 470 742 Cannons . | . . . Explosions . | . . . Melee . | . . . Ramming . | . . . Kinetic 1059 | . 470 589 Thermal 153 | . . 153 Explosive . | . . . Electromagnetic . | . . . Impact . | . . . Slashing . | . . . Piercing . | . . . Highest Corruption . | . . . Average Corruption . | . . . Corruption Purged . | . . . Overload Shots . | . . . Overflow Damage . | . . . Projectiles . | . . . Explosions . | . . . Melee . | . . . Knockbacks . | . . . Impact . | . . . Kinetic . | . . . Secondary . | . . . Self-Inflicted Damage . | . . . Shots . | . . . Rammed . | . . . Targets Rammed . | . . . Kicked . | . . . Crushed . | . . . Highest Temperature 54 | . 54 14 Average Temperature 14 | . 15 5 Received Heat Transfer 477 | . 162 315 Siege Activations . | . . . Robots Corrupted . | . . . Combat Hostiles . | . . . Parts Fried . | . . . Impact Corruptions . | . . . Robots Melted . | . . . Combat Hostiles . | . . . Parts Melted . | . . . Heat Transferred 350 | . . 350 Parts Sabotaged . | . . . Parts Stolen . | . . . Parts Stripped . | . . . Power Chain Reactions . | . . . Missiles Intercepted . | . . . Alert | -11 -10 -9 ------- Run | Scr Mat Mat Peak Influence 241 | . 179 241 Initial 26 | . . 26 Average 98 | . 81 135 Maximum Alert Level 1 | . . 1 Low Security (%) 89 | 100 100 74 Level 1 10 | . . 25 Level 2 . | . . . Level 3 . | . . . Level 4 . | . . . Level 5 . | . . . High Security . | . . . Max Security . | . . . Squads Dispatched 3 | . 2 1 Investigation . | . . . Extermination . | . . . Reinforcement 3 | . 2 1 Assault . | . . . Garrison . | . . . Intercept . | . . . Construction Impeded . | . . . Haulers Reinforced . | . . . Stealth | -11 -10 -9 --------- Run | Scr Mat Mat Distress Signals 4 | . 1 3 Communications Jammed . | . . . Distress Signals . | . . . Times Spotted 29 | . 13 16 Peak Tracking Total 7 | . 5 7 Tactical Retreats 1 | . 1 . Traps | -11 -10 -9 ------- Run | Scr Mat Mat Traps Triggered . | . . . Indirectly . | . . . Trap Hack Attempts . | . . . Triggered . | . . . Disarmed . | . . . Reprogrammed . | . . . Reused . | . . . Traps Extracted . | . . . Installed . | . . . Triggered . | . . . Machines | -11 -10 -9 ---------- Run | Scr Mat Mat Machines Disabled . | . . . Max in Single Turn . | . . . Machines Sabotaged . | . . . Garrisons Compromised . | . . . Overloaded Fab Kills . | . . . Fab Network Shutdowns . | . . . Hacking | -11 -10 -9 --------- Run | Scr Mat Mat Machines Accessed 1 | . 1 . Terminals 1 | . 1 . Fabricators . | . . . Repair Stations . | . . . Recycling Units . | . . . Scanalyzers . | . . . Garrison Access . | . . . Total Hacks 1 | . 1 . Successful 1 | . 1 . Failed . | . . . Catastrophic . | . . . Database Lockouts . | . . . Manual . | . . . Terminals 1 | . 1 . Fabricators . | . . . Repair Stations . | . . . Recycling Units . | . . . Scanalyzers . | . . . Garrison Access . | . . . Terminal Hacks 1 | . 1 . Zone Layout 1 | . 1 . Fabricator Hacks . | . . . Repair Station Hacks . | . . . Recycling Unit Hacks . | . . . Scanalyzer . | . . . Garrison Access Hacks . | . . . Unauthorized Hacks . | . . . Terminals . | . . . Fabricators . | . . . Repair Stations . | . . . Recycling Units . | . . . Scanalyzers . | . . . Garrison Access . | . . . Data Cores Recovered . | . . . Used . | . . . Hacking Detections 1 | . 1 . Full Trace Events . | . . . Feedback Events . | . . . Feedback Blocked . | . . . Robot Schematics Acquired . | . . . Robots Built . | . . . Matter . | . . . Time . | . . . Total Robot Build Rating . | . . . Part Schematics Acquired . | . . . Parts Built . | . . . Matter . | . . . Time . | . . . Total Part Build Rating . | . . . Parts Repaired . | . . . Time . | . . . Parts Recycled . | . . . Recycled Matter . | . . . Retrieved Matter . | . . . Retrieved Components . | . . . Parts Scanalyzed . | . . . Part Schematics Acquired . | . . . Parts Damaged . | . . . Bothacking | -11 -10 -9 ------------ Run | Scr Mat Mat Used RIF Installer . | . . . Robots Hacked . | . . . Non-combat . | . . . Combat . | . . . Robot Hacks Applied . | . . . Relay Couplers Released . | . . . Robots Rewired . | . . . Allies Hacked . | . . . Hacks Repelled . | . . . Allies | -11 -10 -9 -------- Run | Scr Mat Mat Total Allies . | . . . Largest Group . | . . . Highest-Rated Group . | . . . Highest-Rated Ally . | . . . Total Orders . | . . . Ally Attacks . | . . . Total Damage . | . . . Kills . | . . . Allies Corrupted . | . . . Allies Melted . | . . . Intel | -11 -10 -9 ------- Run | Scr Mat Mat Robot Analysis Total . | . . . Derelict Logs Recovered . | . . . Drone Launches . | . . . Drone Recoveries . | . . . Exploration | -11 -10 -9 ------------- Run | Scr Mat Mat Turns Passed 914 | 61 465 388 Spaces Moved 415 | 44 247 124 Core 9 | 9 . . Treads 16 | . . 16 Legs 390 | 35 247 108 Wheels . | . . . Hover . | . . . Flight . | . . . Fastest Speed 50 | 50 120 150 Average Speed 145 | 113 134 177 Slowest Speed 240 | 150 150 240 Overloaded Moves . | . . . Propulsion Burnouts . | . . . Robots Hopped . | . . . Cave-ins Triggered . | . . . Exploration Rate (%) 21 | 4 50 9 Regions Visited 2 Branch Regions . Pre-discovered Areas . | . . . Known Exits Taken . | . . . Unknown Exits Taken 2 | 1 1 . Scrap Searched . | . . . Spaces Dug . | . . . Terrain Destroyed . | . . . Melee . | . . . Projectile . | . . . AOE . | . . . Terrain Rammed . | . . . Walls Destroyed . | . . . Machines Disabled . | . . . Actions | -11 -10 -9 --------- Run | Scr Mat Mat Total 573 | 51 310 212 Wait 26 | . 9 17 Move 413 | 43 246 124 Hop . | . . . Pick Up 9 | 1 4 4 Fast Attach 14 | 6 3 5 Attach 5 | . . 5 Detach . | . . . Swap 7 | 1 3 3 Drop 3 | . 2 1 Fire 96 | . 43 53 Melee . | . . . Ram . | . . . Kick . | . . . Crush . | . . . Escape Stasis . | . . . Rewire . | . . . Trap . | . . . Miscellaneous . | . . . Route ------- -11/Scrapyard -10/Materials -9/Materials History --------- Turn | Location | Event 19 | -11/Scrapyard | Discovered new exit (range 14) 62 | -11/Scrapyard | Entered Materials 333 | -10/Materials | Build established: Mutant 506 | -10/Materials | Discovered new exit (range 13) 527 | -10/Materials | Entered another Materials area 527 | -9/Materials | Evolved 2 slots: Utility x2 712 | -9/Materials | Lost 5 parts (1p1n3w) 907 | -9/Materials | Core integrity fell below 50% 915 | -9/Materials | Self-destructed Last Messages --------------- 00834_ K-01 Serf collects debris. 00834_ Acquired 10 matter. 00837_ K-01 Serf collects debris. 00838_ R-06 Scavenger collects Lgt. Treads. 00839_ Dropped Aluminum Leg. 00841_ R-06 Scavenger collects Aluminum Leg. 00842_ K-01 Serf collects debris. 00848_ Destroyed Lgt. Ion Engine. 00850_ K-01 Serf collects debris. 00851_ R-06 Scavenger destroyed. 00853_ K-01 Serf collects debris. 00854_ Acquired 32 matter. 00857_ K-01 Serf collects debris. 00887_ W-16 Scout sends out distress signal. 00893_ Sml. Laser destroyed. 00907_ L-31 Rogue destroyed. 00911_ K-01 Serf collects debris. 00914_ W-16 Scout sends out distress signal. 00915_ K-01 Serf collects debris. 00915_ Lgt. Treads destroyed. Map ----- +----------------------------------------------------+ | ?????????????????????????????????????????????????? | | ?????????????????????????????????????????????????? | | ?????????????????????????????????????????????????? | | ?????????????????????????????????????????????????? | | ?????????????????????????????????????????????????? | | ?????????????????????????????????????????????????? | | ?????????????????????????????????????????????????? | | ?????????????????????????????????????????????????? | | ?????????????????????????????????????????????????? | | ?????????????????????????????????????????????????? | | ?????????????????????????????????????????????????? | | ???????????????#######???????????????????????????? | | ???????????????# #???????????????????????????? | | ???????????????# ???????????????????????????? | | ???????????????# ???????????????????????????? | | ???????????????? ????????????????????????????? | | ???????????????? ????????????????????????????? | | ????????######### !=#????????????????????????????? | | ????????# ## =%#????????????????????????????? | | ????????# ## =#????????????????????????????? | | ????????# """ ## ^#????????????????????????????? | | ????????# """ ##^ #????????????????????????????? | | ????????# """ ## #????????????????????????????? | | ?????????? ## * ##???????????????????????????? | | ?????#######+###%% ############### ?????? | | ?????# ! @%= Y w ?????? | | ?????# u kgg######## #?????????? | | ?????# %% #????????????????????? | | ?????#== ####### ########????????????????????? | | ?????#=*%#?????#######???????????????????????????? | | ?????# ! ###############?????????????????????????? | | ?????# # T !#?????????????????????????? | | ?????# # #?????????????????????????? | | ?????# # """ """ """ #?????????????????????????? | | ?????# # """ """ """ #?????????????????????????? | | ?????# + """ """ """ #?????????????????????????? | | ?????# #* #?????????????????????????? | | ??#### ###############?????????????????????????? | | ?##!! # #????????????????????????????????? | | ?#! # #????????????????????????????????? | | ?# # """#????????????????????????????????? | | ?# # """#????????????????????????????????? | | ?#! + """#????????????????????????????????? | | ?##!! # #????????????????????????????????? | | ??#### ########????????????????????????????????? | | ?????# #???????????????????????????????????????? | | ?????#####???????????????????????????????????????? | | ?????????????????????????????????????????????????? | | ?????????????????????????????????????????????????? | | ?????????????????????????????????????????????????? | +----------------------------------------------------+ Best States ------------- Heat Dissipation 38 Energy Generation 14 Energy Capacity 265 Matter Stores 300 Matter Capacity 300 Sight Range 16 Terrain Scan Density 10 Evasion (%) 40 Targeting Accuracy 6 Recoil Reduction 2 Item Schematics ----------------- None Robot Schematics ------------------ None Fabricated ------------ Nothing Alien Tech Used ----------------- None Achievements -------------- None Challenges ------------ None Game ------ Seed BackupArmorFalx Manual? 0 Play Time 00:07:28 Cumulative 231.3 hours Start 2021.05.30 @ 10:37:46 End 2021.05.30 @ 10:43:49 Sessions 1 Manual Loads 0 Difficulty Rogue Special Mode None Game No. 439 Rogue 284 Adventurer 148 Explorer 7 Win Type - Total 9 Types 7/0/1/1/0/0/0/0/0 Lore% 75 Gallery% 87 Achievement% 65 Wizard Run 0 Options --------- ASCII 0 Keyboard 0 Movement Numpad Keybinds 0 Fullscreen 1 Font 18/CogNarrow Map View 76x50 Tactical HUD 1 Map Filters NONE Filters NONE Steam 1 RUN: df4647a8-1356-4fd1-b0c0-ed8c022a2012